fUSD/lending_fUSD_20250109
["ID","MTS","AMOUNT","RATE_DAILY","PERIOD"]
[348312855,1736442635607,-500.0,9.795e-05,2]
[348312856,1736442635617,-500.0,9.795e-05,2]
[348312857,1736442635626,-500.0,9.795e-05,2]
[348312858,1736442635636,-500.0,9.795e-05,2]
[348312859,1736442635645,-502.02292164,9.795e-05,2]
[348312860,1736442635655,-500.0,9.795e-05,2]
[348312861,1736442635664,-501.33260661,9.795e-05,2]
[348312862,1736442635674,-500.0,9.795e-05,2]
[348312863,1736442635685,-500.0,9.795e-05,2]
[348312864,1736442635696,-500.0,9.795e-05,2]
[348312865,1736442635706,-500.0,9.795e-05,2]
[348312866,1736442635715,-535.85985406,9.795e-05,2]
[348312867,1736442635725,-500.0,9.795e-05,2]
[348312868,1736442635735,-500.0,9.795e-05,2]
[348312869,1736442635745,-1214.35,9.795e-05,2]
[348312870,1736442635755,-500.0,9.795e-05,2]
[348312871,1736442635764,-90.71846161,9.795e-05,2]
[348312872,1736442635779,-1634.17153839,9.795e-05,2]
[348312873,1736442635790,-548.05,9.795e-05,2]
[348312874,1736442635803,-500.68,9.795e-05,2]
[348312875,1736442635813,-500.0,9.795e-05,2]
[348312876,1736442635823,-500.0,9.795e-05,2]
[348312877,1736442635832,-500.0,9.795e-05,2]
[348312878,1736442635842,-500.0,9.795e-05,2]
[348312879,1736442635852,-1101.0,9.795e-05,2]
[348312880,1736442635863,-500.0,9.795e-05,2]
[348312881,1736442635873,-500.0,9.795e-05,2]
[348312882,1736442635883,-530.19,9.795e-05,2]
[348312883,1736442635893,-500.0,9.795e-05,2]
[348312884,1736442635903,-500.0,9.795e-05,2]
[348312885,1736442635912,-500.0,9.795e-05,2]
[348312886,1736442635922,-567.59,9.795e-05,2]
[348312887,1736442635932,-500.0,9.795e-05,2]
[348312888,1736442635941,-500.0,9.795e-05,2]
[348312889,1736442635951,-500.0,9.795e-05,2]
[348312890,1736442635961,-957.35,9.795e-05,2]
[348312891,1736442635971,-704.52,9.795e-05,2]
[348312892,1736442635981,-500.0,9.795e-05,2]
[348312893,1736442635990,-500.0,9.795e-05,2]
[348312894,1736442635999,-500.0,9.795e-05,2]
[348312895,1736442636009,-500.0,9.795e-05,2]
[348312896,1736442636018,-500.0,9.795e-05,2]
[348312897,1736442636027,-500.0,9.795e-05,2]
[348312898,1736442636037,-500.0,9.795e-05,2]
[348312899,1736442636046,-700.47,9.795e-05,2]
[348312900,1736442636056,-849.96,9.795e-05,2]
[348312901,1736442636066,-199.96398264,9.795e-05,2]
[348312902,1736442636076,-500.0,9.795e-05,2]
[348312903,1736442636085,-500.0,9.795e-05,2]
[348312904,1736442636095,-500.0,9.795e-05,2]
[348312905,1736442636105,-500.0,9.795e-05,2]
[348312906,1736442636114,-500.0,9.795e-05,2]
[348312907,1736442636124,-500.0,9.795e-05,2]
[348312908,1736442636134,-500.0,9.795e-05,2]
[348312909,1736442636143,-500.0,9.795e-05,2]
[348312910,1736442636152,-500.0,9.795e-05,2]
[348312911,1736442636161,-500.0,9.795e-05,2]
[348312912,1736442636171,-500.0,9.795e-05,2]
[348312913,1736442636180,-500.0,9.795e-05,2]
[348312914,1736442636189,-500.0,9.795e-05,2]
[348312915,1736442636199,-500.0,9.795e-05,2]
[348312916,1736442636208,-500.0,9.795e-05,2]
[348312917,1736442636218,-500.0,9.795e-05,2]
[348312918,1736442636227,-922.52,9.795e-05,2]
[348312919,1736442636236,-402.82013189,9.795e-05,2]
[348312920,1736442636246,-678.45,9.795e-05,2]
[348312921,1736442636255,-500.0,9.795e-05,2]
[348312922,1736442636265,-500.0,9.795e-05,2]
[348312923,1736442636275,-500.0,9.795e-05,2]
[348312924,1736442636284,-500.0,9.795e-05,2]
[348312925,1736442636293,-1230.21,9.795e-05,2]
[348312926,1736442636302,-500.0,9.795e-05,2]
[348312927,1736442636311,-500.0,9.795e-05,2]
[348312928,1736442636320,-500.0,9.795e-05,2]
[348312929,1736442636330,-500.0,9.795e-05,2]
[348312930,1736442636339,-737.5,9.795e-05,2]
[348312931,1736442636349,-500.0,9.795e-05,2]
[348312932,1736442636358,-577.94,9.795e-05,2]
[348312933,1736442636367,-500.0,9.795e-05,2]
[348312934,1736442636376,-500.0,9.795e-05,2]
[348312935,1736442636386,-576.31,9.795e-05,2]
[348312936,1736442636395,-500.0,9.795e-05,2]
[348312937,1736442636404,-1136.76,9.795e-05,2]
[348312938,1736442636413,-500.0,9.795e-05,2]
[348312939,1736442636423,-500.0,9.795e-05,2]
[348312940,1736442636432,-500.0,9.795e-05,2]
[348312941,1736442636441,-746.81,9.795e-05,2]
[348312942,1736442636451,-544.62,9.795e-05,2]
[348312943,1736442636460,-500.0,9.795e-05,2]
[348312944,1736442636469,-500.58510681,9.795e-05,2]
[348312945,1736442636478,-500.0,9.795e-05,2]
[348312946,1736442636487,-1042.62,9.795e-05,2]
[348312947,1736442636497,-500.0,9.795e-05,2]
[348312948,1736442636506,-602.09,9.795e-05,2]
[348312949,1736442636515,-500.0,9.795e-05,2]
[348312950,1736442636524,-498.52385353,9.795e-05,2]
[348312951,1736442636534,-500.0,9.795e-05,2]
[348312952,1736442636543,-500.0,9.795e-05,2]
[348312953,1736442636552,-500.0,9.795e-05,2]
[348312954,1736442636561,-500.0,9.795e-05,2]
[348312955,1736442636571,-962.61,9.795e-05,2]
[348312956,1736442636580,-500.0,9.795e-05,2]
[348312957,1736442636590,-500.0,9.795e-05,2]
[348312958,1736442636600,-500.0,9.795e-05,2]
[348312959,1736442636610,-628.16,9.795e-05,2]
[348312960,1736442636620,-500.0,9.795e-05,2]
[348312961,1736442636629,-500.0,9.795e-05,2]
[348312962,1736442636638,-500.0,9.795e-05,2]
[348312963,1736442636648,-636.5,9.795e-05,2]
[348312964,1736442636658,-500.0,9.795e-05,2]
[348312965,1736442636667,-500.0,9.795e-05,2]
[348312966,1736442636676,-620.16,9.795e-05,2]
[348312967,1736442636685,-500.0,9.795e-05,2]
[348312968,1736442636695,-500.0,9.795e-05,2]
[348312969,1736442636705,-500.0,9.795e-05,2]
[348312970,1736442636715,-1639.86,9.795e-05,2]
[348312971,1736442636724,-577.42,9.795e-05,2]
[348312972,1736442636734,-500.0,9.795e-05,2]
[348312973,1736442636744,-500.0,9.795e-05,2]
[348312974,1736442636754,-500.0,9.795e-05,2]
[348312975,1736442636764,-500.0,9.795e-05,2]
[348312976,1736442636773,-66.25788724,9.795e-05,2]
[348312977,1736442636789,-433.74211276,9.795e-05,2]
[348312978,1736442636801,-500.0,9.795e-05,2]
[348312979,1736442636810,-500.0,9.795e-05,2]
[348312980,1736442636819,-500.0,9.795e-05,2]
[348312981,1736442636829,-500.0,9.795e-05,2]
[348312982,1736442636839,-500.0,9.795e-05,2]
[348312983,1736442636849,-500.0,9.795e-05,2]
[348312984,1736442636859,-500.0,9.795e-05,2]
[348312985,1736442636869,-500.0,9.795e-05,2]
[348312986,1736442636879,-500.0,9.795e-05,2]
[348312987,1736442636889,-500.0,9.795e-05,2]
[348312988,1736442636898,-500.0,9.795e-05,2]
[348312989,1736442636908,-500.0,9.795e-05,2]
[348312990,1736442636917,-500.0,9.795e-05,2]
[348312991,1736442636927,-523.33,9.795e-05,2]
[348312992,1736442636937,-500.0,9.795e-05,2]
[348312993,1736442636946,-500.0,9.795e-05,2]
[348312994,1736442636956,-500.0,9.795e-05,2]
[348312995,1736442636966,-500.0,9.795e-05,2]
[348312996,1736442636975,-500.0,9.795e-05,2]
[348312997,1736442636985,-500.0,9.795e-05,2]
[348312998,1736442636994,-500.0,9.795e-05,2]
[348312999,1736442637003,-500.0,9.795e-05,2]
[348313000,1736442637013,-890.48,9.795e-05,2]
[348313001,1736442637022,-500.0,9.795e-05,2]
[348313002,1736442637031,-500.0,9.795e-05,2]
[348313003,1736442637040,-500.0,9.795e-05,2]
[348313004,1736442637049,-500.0,9.795e-05,2]
[348313005,1736442637059,-500.0,9.795e-05,2]
[348313006,1736442637068,-500.0,9.795e-05,2]
[348313007,1736442637078,-500.0,9.795e-05,2]
[348313008,1736442637087,-500.0,9.795e-05,2]
[348313009,1736442637099,-500.0,9.795e-05,2]
[348313010,1736442637109,-500.0,9.795e-05,2]
[348313011,1736442637119,-1447.93,9.795e-05,2]
[348313012,1736442637128,-617.59,9.795e-05,2]
[348313013,1736442637137,-500.0,9.795e-05,2]
[348313014,1736442637147,-500.0,9.795e-05,2]
[348313015,1736442637156,-400.0,9.795e-05,2]
[348313016,1736442637165,-500.0,9.795e-05,2]
[348313017,1736442637175,-500.0,9.795e-05,2]
[348313018,1736442637185,-500.0,9.795e-05,2]
[348313019,1736442637195,-500.0,9.795e-05,2]
[348313020,1736442637204,-500.0,9.795e-05,2]
[348313021,1736442637214,-500.0,9.795e-05,2]
[348313022,1736442637224,-500.0,9.795e-05,2]
[348313023,1736442637234,-500.0,9.795e-05,2]
[348313024,1736442637243,-500.0,9.795e-05,2]
[348313025,1736442637253,-500.0,9.795e-05,2]
[348313026,1736442637262,-620.95,9.795e-05,2]
[348313027,1736442637271,-500.0,9.795e-05,2]
[348313028,1736442637280,-611.45,9.795e-05,2]
[348313029,1736442637289,-331.80960325,9.795e-05,2]
[348313030,1736442637299,-500.0,9.795e-05,2]
[348313031,1736442637308,-500.0,9.795e-05,2]
[348313032,1736442637318,-500.0,9.795e-05,2]
[348313033,1736442637327,-500.0,9.795e-05,2]
[348313034,1736442637337,-1210.35,9.795e-05,2]
[348313035,1736442637348,-500.0,9.795e-05,2]
[348313036,1736442637358,-500.0,9.795e-05,2]
[348313037,1736442637367,-500.0,9.795e-05,2]
[348313038,1736442637376,-500.0,9.795e-05,2]
[348313039,1736442637385,-122.95864937,9.795e-05,2]
[348313040,1736442637405,-377.04135063,9.795e-05,2]
[348313041,1736442637415,-771.54,9.795e-05,2]
[348313042,1736442637424,-280.2004771,9.795e-05,2]
[348313043,1736442637434,-500.0,9.795e-05,2]
[348313044,1736442637444,-500.0,9.795e-05,2]
[348313045,1736442637454,-500.0,9.795e-05,2]
[348313046,1736442637464,-500.0,9.795e-05,2]
[348313047,1736442637473,-500.0,9.795e-05,2]
[348313048,1736442637482,-500.0,9.795e-05,2]
[348313049,1736442637491,-500.0,9.795e-05,2]
[348313050,1736442637500,-500.0,9.795e-05,2]
[348313051,1736442637510,-500.0,9.795e-05,2]
[348313052,1736442637519,-500.0,9.795e-05,2]
[348313053,1736442637529,-500.0,9.795e-05,2]
[348313054,1736442637538,-500.0,9.795e-05,2]
[348313055,1736442637547,-586.46,9.795e-05,2]
[348313056,1736442637557,-500.0,9.795e-05,2]
[348313057,1736442637566,-500.0,9.795e-05,2]
[348313058,1736442637575,-500.0,9.795e-05,2]
[348313059,1736442637585,-1439.5,9.795e-05,2]
[348313060,1736442637594,-500.0,9.795e-05,2]
[348313061,1736442637605,-533.35,9.795e-05,2]
[348313062,1736442637615,-500.0,9.795e-05,2]
[348313063,1736442637624,-500.0,9.795e-05,2]
[348313064,1736442637633,-500.0,9.795e-05,2]
[348313065,1736442637642,-413.42840211,9.795e-05,2]
[348313066,1736442637651,-500.0,9.795e-05,2]
[348313067,1736442637661,-500.0,9.795e-05,2]
[348313068,1736442637670,-1142.8,9.795e-05,2]
[348313069,1736442637680,-500.0,9.795e-05,2]
[348313070,1736442637689,-500.0,9.795e-05,2]
[348313071,1736442637698,-500.0,9.795e-05,2]
[348313072,1736442637707,-500.0,9.795e-05,2]
[348313073,1736442637716,-500.0,9.795e-05,2]
[348313074,1736442637726,-500.0,9.795e-05,2]
[348313075,1736442637735,-500.0,9.795e-05,2]
[348313076,1736442637744,-500.0,9.795e-05,2]
[348313077,1736442637753,-500.0,9.795e-05,2]
[348313078,1736442637762,-500.0,9.795e-05,2]
[348313079,1736442637771,-500.0,9.795e-05,2]
[348313080,1736442637781,-500.0,9.795e-05,2]
[348313081,1736442637792,-500.0,9.795e-05,2]
[348313082,1736442637802,-500.0,9.795e-05,2]
[348313083,1736442637811,-829.65,9.795e-05,2]
[348313084,1736442637820,-500.0,9.795e-05,2]
[348313085,1736442637829,-562.37,9.795e-05,2]
[348313086,1736442637840,-500.0,9.795e-05,2]
[348313087,1736442637853,-500.0,9.795e-05,2]
[348313088,1736442637862,-583.65,9.795e-05,2]
[348313089,1736442637873,-500.0,9.795e-05,2]
[348313090,1736442637882,-500.0,9.795e-05,2]
[348313091,1736442637892,-636.67,9.795e-05,2]
[348313092,1736442637902,-500.0,9.795e-05,2]
[348313093,1736442637911,-744.1,9.795e-05,2]
[348313094,1736442637921,-500.0,9.795e-05,2]
[348313095,1736442637931,-500.0,9.795e-05,2]
[348313096,1736442637940,-500.0,9.795e-05,2]
[348313097,1736442637950,-1089.65,9.795e-05,2]
[348313098,1736442637959,-500.0,9.795e-05,2]
[348313099,1736442637969,-966.56,9.795e-05,2]
[348313100,1736442637979,-500.0,9.795e-05,2]
[348313101,1736442637988,-1047.64,9.795e-05,2]
[348313102,1736442637998,-500.0,9.795e-05,2]
[348313103,1736442638007,-500.0,9.795e-05,2]
[348313104,1736442638017,-500.0,9.795e-05,2]
[348313105,1736442638026,-635.39,9.795e-05,2]
[348313106,1736442638035,-500.0,9.795e-05,2]
[348313107,1736442638045,-500.0,9.795e-05,2]
[348313108,1736442638054,-973.9,9.795e-05,2]
[348313109,1736442638064,-500.0,9.795e-05,2]
[348313110,1736442638073,-500.0,9.795e-05,2]
[348313111,1736442638083,-500.0,9.795e-05,2]
[348313112,1736442638092,-500.0,9.795e-05,2]
[348313113,1736442638105,-500.0,9.795e-05,2]
[348313114,1736442638115,-500.0,9.795e-05,2]
[348313115,1736442638125,-500.0,9.795e-05,2]
[348313116,1736442638135,-500.0,9.795e-05,2]
[348313117,1736442638145,-500.0,9.795e-05,2]
[348313118,1736442638154,-500.0,9.795e-05,2]
[348313119,1736442638163,-500.0,9.795e-05,2]
[348313120,1736442638173,-500.0,9.795e-05,2]
[348313121,1736442638182,-500.0,9.795e-05,2]
[348313122,1736442638192,-607.04,9.795e-05,2]
[348313123,1736442638202,-500.0,9.795e-05,2]
[348313124,1736442638211,-500.0,9.795e-05,2]
[348313125,1736442638220,-500.0,9.795e-05,2]
[348313126,1736442638230,-500.0,9.795e-05,2]
[348313127,1736442638239,-500.0,9.795e-05,2]
[348313128,1736442638249,-500.0,9.795e-05,2]
[348313129,1736442638259,-500.0,9.795e-05,2]
[348313130,1736442638269,-500.0,9.795e-05,2]
[348313132,1736442638279,-500.0,9.795e-05,2]
[348313135,1736442638289,-500.0,9.795e-05,2]
[348313138,1736442638299,-500.0,9.795e-05,2]
[348313140,1736442638310,-500.0,9.795e-05,2]
[348313141,1736442638320,-500.0,9.795e-05,2]
[348313142,1736442638329,-1554.96,9.795e-05,2]
[348313143,1736442638339,-889.7,9.795e-05,2]
[348313144,1736442638349,-500.0,9.795e-05,2]
[348313145,1736442638359,-500.0,9.795e-05,2]
[348313146,1736442638368,-500.0,9.795e-05,2]
[348313147,1736442638378,-500.0,9.795e-05,2]
[348313148,1736442638387,-500.0,9.795e-05,2]
[348313149,1736442638397,-500.0,9.795e-05,2]
[348313150,1736442638406,-682.47,9.795e-05,2]
[348313151,1736442638415,-500.0,9.795e-05,2]
[348313152,1736442638424,-500.0,9.795e-05,2]
[348313153,1736442638434,-1239.29,9.795e-05,2]
[348313154,1736442638443,-898.24,9.795e-05,2]
[348313155,1736442638453,-500.0,9.795e-05,2]
[348313156,1736442638463,-500.0,9.795e-05,2]
[348313157,1736442638473,-500.0,9.795e-05,2]
[348313158,1736442638482,-500.0,9.795e-05,2]
[348313159,1736442638492,-500.0,9.795e-05,2]
[348313160,1736442638502,-500.0,9.795e-05,2]
[348313161,1736442638511,-500.0,9.795e-05,2]
[348313162,1736442638521,-500.0,9.795e-05,2]
[348313163,1736442638531,-500.0,9.795e-05,2]
[348313164,1736442638541,-500.0,9.795e-05,2]
[348313165,1736442638551,-500.0,9.795e-05,2]
[348313166,1736442638560,-500.0,9.795e-05,2]
[348313167,1736442638570,-381.15370108,9.795e-05,2]
[348313168,1736442638579,-500.0,9.795e-05,2]
[348313169,1736442638589,-565.13,9.795e-05,2]
[348313170,1736442638599,-500.0,9.795e-05,2]
[348313171,1736442638609,-500.0,9.795e-05,2]
[348313172,1736442638619,-500.0,9.795e-05,2]
[348313173,1736442638628,-500.0,9.795e-05,2]
[348313174,1736442638638,-500.0,9.795e-05,2]
[348313175,1736442638647,-500.0,9.795e-05,2]
[348313176,1736442638657,-1094.17,9.795e-05,2]
[348313177,1736442638667,-500.0,9.795e-05,2]
[348313178,1736442638677,-500.0,9.795e-05,2]
[348313179,1736442638687,-524.99,9.795e-05,2]
[348313180,1736442638697,-500.0,9.795e-05,2]
[348313181,1736442638706,-500.0,9.795e-05,2]
[348313182,1736442638716,-500.0,9.795e-05,2]
[348313196,1736442638925,-500.0,9.795e-05,2]
[348313200,1736442638935,-2692.49,9.795e-05,2]
[348313203,1736442638946,-500.0,9.795e-05,2]
[348313206,1736442638956,-708.43,9.795e-05,2]
[348313208,1736442638966,-290.63764367,9.795e-05,2]
[348313212,1736442638976,-500.0,9.795e-05,2]
[348313215,1736442638986,-393.11159803,9.795e-05,2]
[348313218,1736442638996,-500.0,9.795e-05,2]
[348313221,1736442639006,-500.0,9.795e-05,2]
[348313223,1736442639017,-500.0,9.795e-05,2]
[348313225,1736442639027,-636.89,9.795e-05,2]
[348313227,1736442639037,-500.0,9.795e-05,2]
[348313229,1736442639046,-500.0,9.795e-05,2]
[348313231,1736442639055,-500.0,9.795e-05,2]
[348313233,1736442639066,-417.30515528,9.795e-05,2]
[348313235,1736442639075,-659.52,9.795e-05,2]
[348313237,1736442639085,-500.0,9.795e-05,2]
[348313239,1736442639094,-500.0,9.795e-05,2]
[348313241,1736442639107,-516.37161911,9.795e-05,2]
[348313243,1736442639117,-500.0,9.795e-05,2]
[348313245,1736442639128,-500.0,9.795e-05,2]
[348313247,1736442639138,-500.0,9.795e-05,2]
[348313249,1736442639147,-500.0,9.795e-05,2]
[348313251,1736442639157,-500.0,9.795e-05,2]
[348313253,1736442639166,-500.0,9.795e-05,2]
[348313255,1736442639176,-500.0,9.795e-05,2]
[348313257,1736442639185,-500.0,9.795e-05,2]
[348313259,1736442639194,-500.0,9.795e-05,2]
[348313261,1736442639203,-1132.21,9.795e-05,2]
[348313263,1736442639213,-1099.71,9.795e-05,2]
[348313265,1736442639222,-663.31,9.795e-05,2]
[348313267,1736442639232,-1126.97,9.795e-05,2]
[348313269,1736442639241,-500.0,9.795e-05,2]
[348313271,1736442639250,-913.06,9.795e-05,2]
[348313273,1736442639261,-500.0,9.795e-05,2]
[348313275,1736442639271,-500.0,9.795e-05,2]
[348313277,1736442639280,-500.0,9.795e-05,2]
[348313279,1736442639290,-5408.76,9.795e-05,2]
[348313281,1736442639299,-500.0,9.795e-05,2]
[348313283,1736442639308,-500.0,9.795e-05,2]
[348313285,1736442639318,-500.0,9.795e-05,2]
[348313287,1736442639328,-553.69,9.795e-05,2]
[348313289,1736442639338,-500.0,9.795e-05,2]
[348313291,1736442639347,-642.17,9.795e-05,2]
[348313293,1736442639358,-500.0,9.795e-05,2]
[348313295,1736442639368,-500.0,9.795e-05,2]
[348313297,1736442639377,-500.0,9.795e-05,2]
[348313299,1736442639387,-500.0,9.795e-05,2]
[348313301,1736442639396,-4103.47,9.795e-05,2]
[348313303,1736442639405,-500.0,9.795e-05,2]
[348313305,1736442639414,-500.0,9.795e-05,2]
[348313307,1736442639423,-500.0,9.795e-05,2]
[348313308,1736442639433,-617.54,9.795e-05,2]
[348313311,1736442639443,-500.0,9.795e-05,2]
[348313313,1736442639452,-500.0,9.795e-05,2]
[348313315,1736442639461,-1129.88,9.795e-05,2]
[348313317,1736442639471,-907.52,9.795e-05,2]
[348313319,1736442639481,-500.0,9.795e-05,2]
[348313320,1736442639490,-500.0,9.795e-05,2]
[348313322,1736442639500,-582.66,9.795e-05,2]
[348313325,1736442639509,-500.0,9.795e-05,2]
[348313327,1736442639519,-576.43,9.795e-05,2]
[348313329,1736442639529,-500.0,9.795e-05,2]
[348313331,1736442639539,-500.0,9.795e-05,2]
[348313333,1736442639548,-3907.36,9.795e-05,2]
[348313335,1736442639558,-500.0,9.795e-05,2]
[348313337,1736442639567,-500.0,9.795e-05,2]
[348313339,1736442639576,-500.0,9.795e-05,2]
[348313341,1736442639586,-500.0,9.795e-05,2]
[348313343,1736442639596,-502.13915873,9.795e-05,2]
[348313345,1736442639607,-500.0,9.795e-05,2]
[348313347,1736442639617,-500.0,9.795e-05,2]
[348313349,1736442639627,-500.0,9.795e-05,2]
[348313351,1736442639636,-500.0,9.795e-05,2]
[348313353,1736442639645,-817.32,9.795e-05,2]
[348313355,1736442639655,-692.42,9.795e-05,2]
[348313357,1736442639665,-500.0,9.795e-05,2]
[348313359,1736442639675,-500.0,9.795e-05,2]
[348313361,1736442639685,-500.0,9.795e-05,2]
[348313362,1736442639694,-534.05,9.795e-05,2]
[348313363,1736442639704,-500.0,9.795e-05,2]
[348313364,1736442639713,-500.0,9.795e-05,2]
[348313365,1736442639722,-1182.03,9.795e-05,2]
[348313366,1736442639731,-1205.69,9.795e-05,2]
[348313367,1736442639740,-500.0,9.795e-05,2]
[348313368,1736442639750,-500.0,9.795e-05,2]
[348313369,1736442639759,-992.0,9.795e-05,2]
[348313370,1736442639768,-500.0,9.795e-05,2]
[348313371,1736442639778,-82.72317462,9.795e-05,2]
[348313372,1736442639796,-417.27682538,9.795e-05,2]
[348313373,1736442639806,-517.13932125,9.795e-05,2]
[348313374,1736442639815,-1017.69,9.795e-05,2]
[348313375,1736442639824,-1281.81,9.795e-05,2]
[348313376,1736442639833,-633.87,9.795e-05,2]
[348313377,1736442639844,-500.0,9.795e-05,2]
[348313378,1736442639857,-500.0,9.795e-05,2]
[348313379,1736442639865,-500.0,9.795e-05,2]
[348313380,1736442639874,-545.87,9.795e-05,2]
[348313381,1736442639883,-500.0,9.795e-05,2]
[348313382,1736442639892,-631.68379142,9.795e-05,2]
[348313383,1736442639901,-500.0,9.795e-05,2]
[348313384,1736442639910,-500.0,9.795e-05,2]
[348313385,1736442639919,-500.0,9.795e-05,2]
[348313386,1736442639928,-500.0,9.795e-05,2]
[348313387,1736442639938,-500.0,9.795e-05,2]
[348313388,1736442639948,-1272.64,9.795e-05,2]
[348313389,1736442639958,-500.0,9.795e-05,2]
[348313390,1736442639968,-500.0,9.795e-05,2]
[348313391,1736442639977,-500.0,9.795e-05,2]
[348313392,1736442639987,-500.0,9.795e-05,2]
[348313393,1736442639997,-500.0,9.795e-05,2]
[348313394,1736442640006,-500.0,9.795e-05,2]
[348313395,1736442640016,-840.54,9.795e-05,2]
[348313396,1736442640026,-500.0,9.795e-05,2]
[348313397,1736442640035,-500.0,9.795e-05,2]
[348313398,1736442640045,-500.0,9.795e-05,2]
[348313399,1736442640055,-500.0,9.795e-05,2]
[348313400,1736442640064,-691.9,9.795e-05,2]
[348313401,1736442640074,-500.0,9.795e-05,2]
[348313402,1736442640083,-1260.17,9.795e-05,2]
[348313403,1736442640093,-571.29,9.795e-05,2]
[348313404,1736442640106,-500.0,9.795e-05,2]
[348313405,1736442640116,-6532.98,9.796e-05,2]
[348313406,1736442640128,-3774.31,9.796e-05,2]
[348313407,1736442640138,-2397.73,9.796e-05,2]
[348313408,1736442640148,-4753.83,9.796e-05,2]
[348313409,1736442640159,-500.0,9.796e-05,2]
[348313410,1736442640169,-1491.76,9.796e-05,2]
[348313411,1736442640178,-500.0,9.796e-05,2]
[348313412,1736442640188,-1212.28,9.796e-05,2]
[348313413,1736442640197,-1744.44,9.796e-05,2]
[348313414,1736442640206,-2117.59,9.796e-05,2]
[348313415,1736442640215,-1921.3,9.796e-05,2]
[348313416,1736442640224,-1822.71,9.796e-05,2]
[348313417,1736442640234,-4200.78,9.796e-05,2]
[348313418,1736442640243,-2007.74,9.796e-05,2]
[348313419,1736442640252,-2463.3,9.796e-05,2]
[348313420,1736442640261,-1734.7,9.796e-05,2]
[348313421,1736442640271,-2365.26,9.796e-05,2]
[348313422,1736442640280,-2036.39,9.796e-05,2]
[348313423,1736442640289,-500.0,9.796e-05,2]
[348313424,1736442640299,-676.5,9.796e-05,2]
[348313425,1736442640308,-845.58,9.796e-05,2]
[348313426,1736442640318,-637.67,9.796e-05,2]
[348313427,1736442640328,-674.22,9.796e-05,2]
[348313428,1736442640337,-513.98,9.796e-05,2]
[348313429,1736442640347,-680.52,9.796e-05,2]
[348313430,1736442640359,-1258.75,9.796e-05,2]
[348313431,1736442640368,-500.0,9.796e-05,2]
[348313432,1736442640378,-2033.44,9.797e-05,2]
[348313433,1736442640388,-1727.52,9.797e-05,2]
[348313434,1736442640398,-2311.62,9.797e-05,2]
[348313435,1736442640407,-1763.8,9.797e-05,2]
[348313436,1736442640417,-905.52,9.797e-05,2]
[348313437,1736442640427,-2153.11,9.797e-05,2]
[348313438,1736442640436,-1290.92,9.797e-05,2]
[348313439,1736442640446,-1960.81713237,9.797e-05,2]
[348313442,1736442640904,-976.46695796,9.797e-05,2]
[348313443,1736442640970,-500.0,9.794e-05,2]
[348313444,1736442640980,-1227.74590967,9.797e-05,2]
[348313445,1736442640991,-509.91,9.797e-05,2]
[348313446,1736442641001,-10339.63,9.797e-05,2]
[348313447,1736442641011,-1895.68,9.797e-05,2]
[348313448,1736442641021,-1576.54,9.797e-05,2]
[348313449,1736442641031,-1221.93,9.797e-05,2]
[348313450,1736442641041,-628.86,9.797e-05,2]
[348313451,1736442641052,-2038.13,9.797e-05,2]
[348313452,1736442641062,-2626.05,9.797e-05,2]
[348313453,1736442641071,-893.98,9.797e-05,2]
[348313454,1736442641081,-150.0,9.804e-05,2]
[348313455,1736442641156,-559.1021256,9.921e-05,2]
[348313456,1736442641166,-84981.6075,9.968e-05,2]
[348313457,1736442641176,-205.85318766,9.969e-05,2]
[348313458,1736442641186,-200.0,9.971e-05,2]
[348313459,1736442641195,-566.92,9.977e-05,2]
[348313460,1736442641206,-150.0,9.986e-05,2]
[348313461,1736442641215,-607.75,9.998e-05,2]
[348313462,1736442641226,-407.5820148,0.0001,2]